[Event "FIDE WSTC Open 50 2025"]
[Site "Prague"]
[Date "2025.02.18"]
[Round "2.2"]
[White "Obsivac, Josef"]
[Black "Shabalov, Alexander"]
[Result "1/2-1/2"]
[Annotator "TA"]
[ECO "A40"]
[WhiteElo "2262"]
[BlackElo "2471"]
[PlyCount "88"]
[EventDate "2025.02.17"]
[EventType "team-tourn"]
[EventCountry "CZE"]
[SourceTitle "playchess.com"]
[Source "ChessBase"]
[SourceQuality "1"]
[TimeControl "40/5400+30:1800+30"]

{[%evp 12,88,63,26,39,30,23,27,40,28,88,61,68,59,112,3,0,7,101,66,47,51,67,67,73,69,70,62,112,88,109,0,54,14,123,123,220,230,243,238,219,232,243,224,221,225,268,226,250,258,251,257,305,234,233,240,246,245,240,238,216,0,246,251,223,186,191,91,102,118,114,0,0,0,0,0,0,0,0]} 1. d4 {[%emt 0:00:04]} e6 {[%emt 0:00:13]} 2. c4 {[%emt 0:00:23]} b6 {[%emt 0:00:05]} 3. Nf3 {[%emt 0:01:45]} Bb7 {[%emt 0:00:09]} 4. Nc3 {[%emt 0:03:35]} f5 {[%emt 0:01:46]} 5. g3 {[%emt 0:04:29]} Nf6 {[%emt 0:00:29]} 6. Bg2 {[%emt 0:00:10]} g6 {[%emt 0:00:23]} 7. O-O {[%emt 0:01:03]} Bg7 {[%emt 0:00:05] A84: Dutch Defence: 2 c4 Miscellaneous.} 8. d5 {[%emt 0:01:46]} O-O {[%emt 0:02:09]} 9. Bf4 {[%emt 0:08:45]} Na6 {[%emt 0:02:24] White has an edge.} 10. Rc1 {[%emt 0:04:16]} Nc5 {[%emt 0:15:13]} (10... Re8 $11) 11. b4 {[%emt 0:14:16]} Nce4 {[%emt 0:03:04]} 12. Nb5 {[%emt 0:00:09]} exd5 $146 {[%emt 0:13:33]} (12... c5 $14) (12... c6 13. dxc6 Bxc6 14. Nfd4 Qe7 15. Be5 Qxb4 16. f3 Nc5 17. Bd6 Rfd8 18. a3 Qa5 {0-1 Cuenca Jimenez,J (2515)-Henderson de la Fuente,L (2487) ESP-ch rapid 2019 (6)}) 13. Bxc7 {[%emt 0:00:26]} (13. Nxc7 $16 Rc8 14. cxd5 (14. Nxd5 Nxd5 15. cxd5 Nc3 $11)) 13... Qe7 $11 {[%emt 0:00:40]} 14. c5 {[%emt 0:02:33]} Bc6 {[%emt 0:09:40]} (14... Ne8 $11) 15. Nfd4 {[%emt 0:07:12]} bxc5 {[%emt 0:12:40]} 16. bxc5 {[%emt 0:00:10]} Rfc8 {[%emt 0:00:07]} 17. Bd6 {[%emt 0:08:18]} Qd8 {[%emt 0:01:10]} 18. Bf4 $1 {[%emt 0:01:35] White is more active.} Qa5 {[%emt 0:05:26]} 19. Qd3 {[%emt 0:10:06][%cal Ob5c7]} a6 {[%emt 0:02:42] Counterplay White} (19... Ne8 $14) 20. Nd6 $16 {[%emt 0:01:41][%csl Od6] Strong Square White (d6)} Rf8 {[%emt 0:00:47]} 21. Nb3 {[%emt 0:09:21]} ({White should play} 21. f3 $16 {Nxc6 is the strong threat.} Nxd6 (21... Nxc5 $2 22. Qe3 $18) 22. Nxc6 (22. Bxd6 Rfe8 $14) (22. cxd6 Bb5 $14) 22... dxc6 23. cxd6 (23. Bxd6 Rfe8 $11)) 21... Qa4 {[%emt 0:02:35]} (21... Qxa2 $11 22. Be5 Qa4) 22. Rc2 $36 {[%emt 0:02:17][%mdl 2048] White has some pressure.} Ng4 {[%emt 0:04:48]} (22... Qb4 $11 {keeps the balance.}) 23. f3 {[%emt 0:05:49][%csl LRe4,LRg4]} g5 {[%emt 0:07:41]} (23... Nxd6 $16 {was called for.} 24. Bxd6 (24. cxd6 Nf6 $18) 24... Ne5 25. Bxe5 Bxe5) 24. fxg4 $18 {[%emt 0:01:27]} gxf4 {[%emt 0:00:59]} 25. Rxf4 {[%emt 0:00:22]} ({Resist} 25. Nxf5 $6 fxg3 26. hxg3 Rae8 $16) 25... fxg4 {[%emt 0:03:08]} 26. Rxg4 {[%emt 0:01:19][%cal Rg2e4]} Kh8 {[%emt 0:00:06]} 27. Nxe4 {[%emt 0:05:00]} dxe4 {[%emt 0:05:39]} 28. Bxe4 {[%emt 0:00:20]} Rab8 {[%emt 0:03:29][%cal Ob8b3]} 29. Bf3 {[%emt 0:01:47]} Rb4 {[%emt 0:00:49]} 30. Bxc6 {[%emt 0:00:57]} dxc6 {[%emt 0:00:25]} 31. Rgc4 {[%emt 0:02:25]} Qb5 {[%emt 0:01:33]} 32. Qe4 {[%emt 0:00:48]} Rxc4 {[%emt 0:00:28]} 33. Rxc4 {[%emt 0:00:26]} Qb7 {[%emt 0:00:16]} 34. Qe6 {[%emt 0:00:49]} Rf6 {[%emt 0:00:28]} 35. Qe8+ {[%emt 0:00:13]} Rf8 {[%emt 0:00:04]} 36. Qe6 {[%emt 0:00:18]} Rf6 $1 {[%emt 0:00:04]} 37. Qg4 {[%emt 0:00:18]} Bh6 {[%emt 0:02:04]} 38. Rc3 {[%emt 0:01:33] Against Be3+} Qe7 {[%emt 0:00:42]} 39. Rd3 {[%emt 0:01:03]} (39. Qd4 $18 {and White stays clearly on top.}) 39... Be3+ $16 {[%emt 0:00:58] [#]} 40. Kg2 $1 {[%emt 0:00:23]} Qf8 {[%emt 0:00:57] [#] Prevents Qc8} 41. Rd1 {[%emt 0:24:40]} (41. Rxe3 Rf2+ 42. Kg1 Rf1+ 43. Kg2 Qf2+ 44. Kh3 Qxe3 $11) (41. Qe4 $1 $16 {[%cal Re4e3]} Rf2+ 42. Kh3 Qh6+ 43. Qh4 Qxh4+ 44. Kxh4 Rxh2+ 45. Kg4) 41... Rf2+ $11 {[%emt 0:09:09] The position is equal.} 42. Kh3 {[%emt 0:00:02]} Rf6 {[%emt 0:00:55] ...Rh6+ is the strong threat.} 43. Kg2 {[%emt 0:00:21]} Rf2+ {[%emt 0:05:22]} 44. Kh3 {[%emt 0:00:02]} Rf6 $1 {[%emt 0:00:06] Prevents Qe6.   Weighted Error Value: White=0.30/Black=0.23 (precise)   Mistake:       	White=4     	Black=7      Inaccurate:     	White=3     	---        OK:         	White=10    	Black=12     Best:        	White=5     	Black=5      Strong:       	White=2     	Black=2} 1/2-1/2

[Event "FIDE WSTC Open 50 2025"]
[Site "Prague"]
[Date "2025.02.18"]
[Round "2.3"]
[White "Novikov, Igor"]
[Black "Holemar, David"]
[Result "0-1"]
[Annotator "TA"]
[ECO "E10"]
[WhiteElo "2490"]
[BlackElo "2150"]
[PlyCount "94"]
[EventDate "2025.02.17"]
[EventType "team-tourn"]
[EventCountry "CZE"]
[SourceTitle "playchess.com"]
[Source "ChessBase"]
[SourceQuality "1"]
[TimeControl "40/5400+30:1800+30"]

{[%evp 13,94,-2,15,20,79,87,93,104,125,88,95,83,86,0,0,-22,6,0,121,77,99,85,301,309,299,300,261,230,224,21,23,-21,-19,-26,2,22,10,2,10,0,0,0,0,0,0,-83,-81,-72,-79,-88,-15,-26,0,0,0,0,0,0,0,-48,-48,-54,-50,-56,-58,-280,-111,-756,-735,-729,-728,-704,-439,-421,-418,-2139,-1647,-29963,-29963,-29961,-29964,-6654,-10621]} 1. d4 {[%emt 0:00:04]} Nf6 {[%emt 0:00:09]} 2. c4 {[%emt 0:00:10]} e6 {[%emt 0:00:06]} 3. Nf3 {[%emt 0:00:14]} c5 {[%emt 0:00:07]} 4. d5 {[%emt 0:00:14]} b5 {[%emt 0:00:35]} 5. dxe6 {[%emt 0:05:37]} fxe6 {[%emt 0:00:09]} 6. cxb5 {[%emt 0:00:14]} d5 {[%emt 0:00:06]} 7. g3 {[%emt 0:04:18]} Bd6 {[%emt 0:04:48]} 8. Nc3 {[%emt 0:03:06][%cal Oe2e4,Bb1c3,Bc3a4,Ba4c5,Bc5e6][%mdl 32] e4! is in the air E10: Blumenfeld Gambit.} d4 {[%emt 0:15:09]} (8... Nbd7 $11 {remains equal.}) 9. Na4 $16 {[%emt 0:02:49]} O-O $146 {[%emt 0:08:46]} ({Predecessor:} 9... Bb7 10. Bh3 Bd5 11. O-O e5 12. Qc2 Nbd7 13. Bg5 O-O 14. Bxd7 Qxd7 15. Bxf6 Rxf6 16. Nxc5 Qg4 17. Ne1 Rc8 18. b4 Rh6 19. e4 dxe3 20. f3 Qxb4 21. Ncd3 Rxc2 22. Nxb4 Rcxh2 {0-1 Snorek,M (2097)-Dvorak,J (2204) CZE-chT2C 1112 2011 (7.8)}) 10. Bg2 {[%emt 0:06:01][%cal Ob2b4] White is better.} Bb7 {[%emt 0:01:11] [#]} 11. b4 {[%emt 0:07:49][%mdl 512] Wards off Qa5} cxb4 {[%emt 0:05:10]} 12. Qxd4 {[%emt 0:00:37]} e5 {[%emt 0:01:16]} 13. Qe3 {[%emt 0:17:14]} (13. Nxe5 $2 Bxg2 14. Rg1 Bxe5 15. Qxe5 Bd5 $19) ({White should play} 13. Qd1 $16) 13... Qa5 $11 {[%emt 0:10:38][%csl LRa4,LRb5]} 14. Nc5 {[%emt 0:05:18]} (14. Nxe5 $2 Bxg2 15. Nc4 Qxb5 $19 (15... Qxa4 $2 16. Rg1 $19)) 14... Bd5 {[%emt 0:04:43]} (14... Qxb5 $2 15. Nxb7 (15. Nxe5 $2 Bxg2 16. Rg1 Bxc5 $19) 15... Qxb7 16. O-O $18) 15. O-O {[%emt 0:08:33] and Ng5 should not be overlooked} Qxb5 {[%emt 0:00:30] [#]} (15... Bxc5 $11 16. Qxc5 Nbd7) 16. Ne6 $1 $16 {[%emt 0:03:19][%mdl 512]} Rf7 {[%emt 0:21:36] A sharp opening} (16... Bxe6 $2 17. Nd4 Qd7 18. Nxe6 (18. Bxa8 $2 exd4 19. Qxd4 Nc6 $19) 18... Qxe6 19. Bxa8 $18) 17. Rd1 {[%emt 0:15:46] White plays in the center} (17. Nxe5 Re7 18. Nd4 Qb7 $19) 17... Nbd7 {[%emt 0:08:25]} (17... Rd7 $16 {was worth a try.}) 18. Nfg5 $18 {[%emt 0:04:04]} Re7 {[%emt 0:02:52]} 19. Bxd5 {[%emt 0:09:02]} Nxd5 {[%emt 0:00:11]} 20. Qb3 {[%emt 0:00:12]} N7f6 {[%emt 0:01:20]} 21. Be3 $2 {[%emt 0:02:57]} (21. e4 $18) 21... Kh8 $1 $11 {[%emt 0:02:09][%cal Oh7h6]} 22. Ne4 {[%emt 0:02:17]} Nxe4 {[%emt 0:00:44]} 23. Rxd5 {[%emt 0:00:03]} Qxe2 {[%emt 0:04:54]} 24. Ng5 {[%emt 0:00:10]} Nxg5 {[%emt 0:00:43]} 25. Bxg5 {[%emt 0:00:03]} Re6 {[%emt 0:00:16]} 26. Rad1 {[%emt 0:00:17]} Bf8 {[%emt 0:02:27]} 27. Rd7 {[%emt 0:02:05]} Qg4 {[%emt 0:01:16][%cal Oe6e8]} 28. Be3 {[%emt 0:00:11][%cal Ob3d5]} a5 {[%emt 0:00:40]} 29. Qd5 {[%emt 0:01:06]} (29. Rd8 $11 Re8 30. R8d7) 29... Ree8 $17 {[%emt 0:00:09]} 30. Bc5 {[%emt 0:00:33]} Bxc5 {[%emt 0:01:38]} 31. Qxc5 {[%emt 0:00:02]} h6 {[%emt 0:00:48]} ({Black should play} 31... a4 $17) 32. R1d6 $11 {[%emt 0:00:52]} Qe4 {[%emt 0:01:15]} 33. Qc1 {[%emt 0:00:33]} Qh7 {[%emt 0:00:31]} 34. Rc7 {[%emt 0:00:47] Against Rac8} Rad8 {[%emt 0:00:56]} 35. Qc6 {[%emt 0:00:30]} Rf8 {[%emt 0:00:38]} 36. Rf7 {[%emt 0:00:47]} Qb1+ $15 {[%emt 0:00:56]} 37. Kg2 {[%emt 0:00:02][%cal Od6h6]} Rxf7 {[%emt 0:00:10]} 38. Rxd8+ {[%emt 0:00:04][%mdl 4096] Endgame KQR-KQR. Black is a pawn up.} Kh7 {[%emt 0:00:05]} 39. Qa8 $2 {[%emt 0:00:37] [#]} (39. Qd5 $15 Qf5 40. f3) 39... Qf5 $2 {[%emt 0:00:24]} ({Stronger than} 39... Qxa2 40. Rh8+ Kg6 41. Qe4+ Kh5 42. Qxe5+ Kg6 43. Qe4+ Rf5 44. Qc6+ Rf6 45. Qe4+ Rf5 46. Qc6+ Rf6 47. Qe4+ Rf5 $11) (39... Qc2 $1 $19 {[%cal Rc2f2] and Black stays clearly on top.} 40. Rh8+ Kg6 41. Qa6+ Rf6) 40. Rd2 {[%emt 0:00:52][%mdl 8192]} (40. Rh8+ $17 Kg6 41. Qc6+ Rf6 42. Qe8+ Kg5 43. h4+ Kg4 44. Qc8) 40... e4 $19 {[%emt 0:00:28] Hoping for ...Qf3+.} 41. Qd5 {[%emt 0:07:14]} Qf3+ {[%emt 0:03:54]} 42. Kg1 {[%emt 0:00:06]} a4 {[%emt 0:00:54]} 43. Qc4 {[%emt 0:04:49] Inhibits Rc7.} b3 {[%emt 0:04:29]} 44. axb3 {[%emt 0:02:23]} (44. h4 $142) 44... axb3 {[%emt 0:00:08]} 45. Qc5 {[%emt 0:00:32] [#] Inhibits Ra7.} e3 $1 {[%emt 0:05:15][%mdl 512]} 46. Qxe3 {[%emt 0:01:11]} Qxe3 {[%emt 0:00:17]} 47. fxe3 {[%emt 0:00:04]} Ra7 {[%emt 0:00:06] What a bad dream for White.   Weighted Error Value: White=0.62/Black=0.28 (precise)   Loses game:     	White=2     	Black=1      Missed win:     	White=1     	Black=1      Mistake:       	White=4     	Black=3      Inaccurate:     	White=2     	Black=3      OK:         	White=12    	Black=11     Best:        	White=6     	Black=8      Strong:       	---       	Black=1      Brilliant:      	White=1     	---} 0-1

[Event "FIDE WSTC Open 50 2025"]
[Site "Prague"]
[Date "2025.02.18"]
[Round "2.4"]
[White "Skacelik, Petr"]
[Black "Rachels, Stuart"]
[Result "0-1"]
[Annotator "TA"]
[ECO "D20"]
[WhiteElo "2132"]
[BlackElo "2466"]
[PlyCount "94"]
[EventDate "2025.02.17"]
[EventType "team-tourn"]
[EventCountry "CZE"]
[SourceTitle "playchess.com"]
[Source "ChessBase"]
[SourceQuality "1"]
[TimeControl "40/5400+30:1800+30"]

{[%evp 13,94,0,0,0,0,0,0,-6,0,-12,-8,-8,0,-16,-17,-23,-4,-25,0,0,0,-9,0,-17,-24,-12,0,-33,-33,-32,-49,-60,-74,-77,-77,-70,-59,-96,-109,-293,-207,-173,-95,-103,-27,-99,-35,-18,-33,-23,-29,-19,-33,-14,0,0,0,0,0,0,0,-8,-1,-1,0,0,0,-61,-61,-50,-8,-213,-213,-213,-213,-213,-213,-984,-909,-746,-697,-29962,-29963]} 1. d4 {[%emt 0:00:02]} d5 {[%emt 0:00:04]} 2. c4 {[%emt 0:00:04]} dxc4 {[%emt 0:00:07]} 3. e4 {[%emt 0:00:40]} e5 {[%emt 0:00:06]} 4. Nf3 {[%emt 0:00:29]} Bb4+ {[%emt 0:00:09]} 5. Bd2 {[%emt 0:01:32]} Bxd2+ {[%emt 0:00:08]} 6. Qxd2 {[%emt 0:00:11]} exd4 {[%emt 0:00:31]} 7. Qxd4 {[%emt 0:01:16] 7.Nxd4 is more fashionable.} Nf6 {[%emt 0:00:25]} 8. Qxd8+ {[%emt 0:01:08] D20: Queen's Gambit Accepted: 3 e3 and 3 e4.} Kxd8 {[%emt 0:00:03]} 9. Nc3 {[%emt 0:00:17][%cal Oe4e5]} Be6 {[%emt 0:00:37]} 10. Nd4 {[%emt 0:00:14] The position is equal.} Ke7 {[%emt 0:01:19]} 11. Nxe6 {[%emt 0:01:16]} fxe6 {[%emt 0:00:07]} 12. Bxc4 {[%emt 0:00:08]} Nc6 {[%emt 0:00:46]} 13. f3 {[%emt 0:05:10]} Rad8 {[%emt 0:01:08]} 14. Rd1 {[%emt 0:13:41]} Rxd1+ {[%emt 0:00:36]} 15. Kxd1 {[%emt 0:01:49]} e5 {[%emt 0:01:02]} 16. Ke2 $146 {[%emt 0:03:56]} (16. Kd2 Rd8+ 17. Ke3 Nd4 18. Rc1 c6 19. Ne2 g5 20. Nxd4 Rxd4 21. Bd3 Kd6 22. a3 {½-½ Browne,W (2510)-Seirawan,Y (2635) US Open-91 Jacksonville 1990}) 16... Nd4+ {[%emt 0:02:12]} 17. Ke3 {[%emt 0:03:51]} c6 {[%emt 0:00:07]} 18. a3 {[%emt 0:05:43]} b5 {[%emt 0:01:35]} 19. Bd3 {[%emt 0:02:32]} a5 {[%emt 0:03:06]} 20. g3 {[%emt 0:05:37]} Rd8 {[%emt 0:02:22][%cal Od4f3]} 21. Rd1 {[%emt 0:03:19]} g5 {[%emt 0:01:39]} 22. a4 {[%emt 0:04:32]} b4 {[%emt 0:09:26]} 23. Ne2 {[%emt 0:00:10]} c5 {[%emt 0:20:59][%cal Oc5c4] Black is much more active.} 24. Rc1 {[%emt 0:12:58]} Kd6 {[%emt 0:03:19]} 25. h4 {[%emt 0:11:41]} gxh4 {[%emt 0:05:23]} 26. g4 $2 {[%emt 0:04:32]} (26. gxh4 $17 Nd7 27. Bb5) 26... h5 {[%emt 0:06:05]} 27. g5 {[%emt 0:05:14] [#]} Nh7 {[%emt 0:05:13] A dynamic duo of knights.} (27... Nd7 $1 $19 28. g6 Rf8) 28. g6 $17 {[%emt 0:07:33]} Nf8 {[%emt 0:03:11]} 29. Rg1 {[%emt 0:03:13] [#]} Nfe6 {[%emt 0:00:30]} (29... h3 $1 $17 {Threatens to win with ...h2.} 30. Rg5 (30. g7 $2 Nfe6 $17) 30... h4) 30. f4 $1 $15 {[%emt 0:00:10] Hoping for f5.} exf4+ {[%emt 0:22:39]} 31. Nxf4 {[%emt 0:00:05]} Nxf4 {[%emt 0:00:07]} 32. Kxf4 $11 {[%emt 0:00:00][%mdl 4096] Endgame KRB-KRN. Black is a pawn up.} Ne6+ {[%emt 0:00:55]} 33. Ke3 {[%emt 0:00:21]} Rg8 {[%emt 0:02:08]} 34. Rh1 {[%emt 0:00:36]} Ke5 {[%emt 0:03:09]} (34... Rxg6 $2 {perishes.} 35. e5+ (35. Rxh4 Rg3+ 36. Kd2 Rf3 $17) 35... Kxe5 36. Bxg6 $18) 35. Rxh4 {[%emt 0:00:41]} Rxg6 {[%emt 0:00:03]} 36. Rxh5+ {[%emt 0:00:11]} Rg5 {[%emt 0:00:01]} 37. Rh3 {[%emt 0:01:06]} Nf4 {[%emt 0:04:35]} 38. Rf3 {[%emt 0:01:04]} Rg4 {[%emt 0:00:02]} 39. Bf1 {[%emt 0:00:23]} Rh4 {[%emt 0:00:45]} 40. Rg3 {[%emt 0:00:51]} (40. Rf2 $11) 40... Ne6 $15 {[%emt 0:00:30]} 41. Bg2 {[%emt 0:03:00]} c4 {[%emt 0:06:12]} 42. Bf3 $2 {[%emt 0:03:30]} (42. Rg8 $11) 42... Rh2 $19 {[%emt 0:02:05]} 43. Be2 {[%emt 0:00:38]} c3 {[%emt 0:00:56]} 44. bxc3 {[%emt 0:00:04]} bxc3 {[%emt 0:00:08]} 45. Rg1 $2 {[%emt 0:04:05]} (45. Bc4 c2 46. Rg1) 45... Rh3+ {[%emt 0:01:43]} 46. Bf3 {[%emt 0:00:53]} c2 {[%emt 0:07:23]} 47. Kf2 {[%emt 0:02:28]} Nd4 {[%emt 0:03:01] Weighted Error Value: White=0.51/Black=0.12 (very precise)   Loses game:     	White=2     	---        Mistake:       	White=2     	Black=2      Inaccurate:     	White=2     	Black=1      OK:         	White=13    	Black=14     Best:        	White=3     	Black=4      Strong:       	White=1     	---} 0-1

[Event "FIDE WSTC Open 50 2025"]
[Site "Prague"]
[Date "2025.02.18"]
[Round "2.6"]
[White "Conquest, Stuart C"]
[Black "Jaksland, Tim"]
[Result "1/2-1/2"]
[Annotator "TA"]
[ECO "E03"]
[WhiteElo "2513"]
[BlackElo "2143"]
[PlyCount "84"]
[EventDate "2025.02.17"]
[EventType "team-tourn"]
[EventCountry "CZE"]
[SourceTitle "playchess.com"]
[Source "ChessBase"]
[SourceQuality "1"]
[TimeControl "40/5400+30:1800+30"]

{[%evp 11,84,0,21,7,12,-4,13,20,15,16,22,22,29,34,36,30,43,36,81,60,48,62,60,65,56,51,74,33,67,60,112,118,96,106,118,109,163,17,12,0,2,0,0,0,74,-170,-178,-171,-96,-103,-97,-98,-80,-77,-83,-96,-29,-45,0,-12,-13,-27,0,-62,-65,-174,0,0,0,0,0,-8,-8,-8,-8]} 1. d4 {[%emt 0:00:17]} Nf6 {[%emt 0:00:09]} 2. c4 {[%emt 0:00:21]} e6 {[%emt 0:00:22]} 3. g3 {[%emt 0:01:03]} d5 {[%emt 0:00:49]} 4. Bg2 {[%emt 0:00:27]} dxc4 {[%emt 0:01:10]} 5. Qa4+ {[%emt 0:01:46]} Nbd7 {[%emt 0:02:49]} 6. Qxc4 {[%emt 0:01:53]} a6 {[%emt 0:02:31]} 7. Be3 $1 {[%emt 0:02:10][%mdl 4] is currently scoring better than 7.Qc2. E03: Open Catalan: 5 Qa4+ Nbd7 6 Qxc4.} Bd6 {[%emt 0:04:11]} 8. Nh3 {[%emt 0:02:46]} O-O {[%emt 0:05:42][%cal Of6d5]} 9. O-O {[%emt 0:02:27]} e5 {[%emt 0:04:30]} 10. Qc2 {[%emt 0:19:10]} Qe7 {[%emt 0:15:39]} 11. Nc3 {[%emt 0:04:21]} exd4 $146 {[%emt 0:11:58]} (11... c6 12. Rad1 h6 13. dxe5 Nxe5 14. Nf4 Re8 15. Bd4 Be6 16. Rfe1 Rad8 17. Nxe6 Qxe6 {1-0 Gleizerov,E (2378)-Pridorozhni,A (2514) Ekaterinburg Scerbin Memorial rapid 2024 (10)}) 12. Bxd4 {[%emt 0:00:20]} Bc5 {[%emt 0:00:45]} 13. Rad1 {[%emt 0:08:55]} Bxd4 {[%emt 0:08:24]} 14. Rxd4 {[%emt 0:00:10]} Ne5 {[%emt 0:00:17]} 15. Nf4 {[%emt 0:05:50]} c6 {[%emt 0:03:24] Dodges Ncd5} 16. Rfd1 {[%emt 0:14:51]} Rb8 {[%emt 0:02:02]} 17. b3 {[%emt 0:07:45]} Bd7 {[%emt 0:09:02]} 18. R1d2 {[%emt 0:05:27]} Rfc8 {[%emt 0:03:33]} 19. Qd1 {[%emt 0:05:15] White is more active.} g6 {[%emt 0:05:00]} 20. h3 {[%emt 0:04:45]} Kg7 {[%emt 0:09:33]} (20... Rf8 $14) 21. Ne4 $16 {[%emt 0:02:15]} Nxe4 {[%emt 0:02:15]} 22. Rxe4 {[%emt 0:00:57]} Bf5 {[%emt 0:00:50]} 23. Re3 {[%emt 0:00:15]} Qf6 {[%emt 0:03:26]} (23... Kg8 $16 {might work better.}) 24. Rd4 {[%emt 0:03:01]} (24. Rd6 $18 Rd8 25. Red3 Rxd6 26. Rxd6) 24... Re8 $1 $11 {[%emt 0:01:20]} 25. g4 {[%emt 0:04:20]} Rbd8 $1 {[%emt 0:00:20]} 26. Rxd8 {[%emt 0:00:21]} (26. gxf5 Rxd4 $15) 26... Rxd8 {[%emt 0:00:06]} 27. Qc1 {[%emt 0:00:11]} Bxg4 {[%emt 0:00:59] [#]} 28. hxg4 $2 {[%emt 0:01:07]} (28. Rxe5 Qxe5 29. hxg4 Qd4 $11) (28. Rg3 $1 $16 {keeps the pressure on.} Rd4 (28... g5 29. Rxg4 Kh6 30. Nd3 $16) 29. hxg4 Rxf4 (29... Qxf4 $2 30. e3 $18) 30. g5) 28... Qxf4 $19 {[%emt 0:00:14] Black attacks} 29. Qa1 {[%emt 0:01:40]} f6 {[%emt 0:00:16]} (29... Rd4 $1 $19 30. Rg3 Nxg4) 30. Re4 $17 {[%emt 0:00:09]} Qd2 {[%emt 0:00:15]} 31. g5 {[%emt 0:00:32] Threatens to win with gxf6+.} Qd1+ {[%emt 0:02:21]} (31... Qxg5 32. f4 Qg3 33. fxe5 $16) 32. Qxd1 {[%emt 0:00:04]} Rxd1+ {[%emt 0:00:03][%mdl 4096] Endgame KRB-KRN. Black is a pawn up.} 33. Kh2 {[%emt 0:00:09]} Kf7 {[%emt 0:01:22]} (33... Rd2 $17 34. Bh3 Nf7 (34... Rxa2 35. Bc8 $17) 35. gxf6+ Kxf6 36. Re6+ Kg7) 34. Rh4 $11 {[%emt 0:00:59]} Kg7 {[%emt 0:00:53]} 35. gxf6+ {[%emt 0:00:19]} Kxf6 {[%emt 0:00:05]} 36. Rxh7 {[%emt 0:00:16]} Rd2 {[%emt 0:00:30]} 37. f4 {[%emt 0:01:38]} (37. Rxb7 $11 Rxe2 38. Kg3) 37... Nf7 $15 {[%emt 0:00:22]} 38. e4 {[%emt 0:00:18] [#]} (38. Bf3 $15) 38... Rxa2 $2 {[%emt 0:00:44]} ({Black should play} 38... g5 $1 $19 {Threatens to win with ...Kg6.} 39. fxg5+ (39. e5+ $2 Kg6 $19) 39... Kg6 (39... Nxg5 40. Rxb7 Nxe4 41. Rb4 $11)) 39. e5+ $11 {[%emt 0:00:15] The position is equal.} Ke7 {[%emt 0:00:45]} 40. Kg3 {[%emt 0:01:09]} Rb2 {[%emt 0:00:31]} 41. Bh3 {[%emt 0:12:21]} Rxb3+ {[%emt 0:01:41]} 42. Kf2 {[%emt 0:02:38]} Rb2+ {[%emt 0:12:51] Weighted Error Value: White=0.24 (precise) /Black=0.23 (precise)   Loses game:     	White=1     	---        Missed win:     	---       	Black=1      Mistake:       	White=3     	Black=5      Inaccurate:     	White=1     	Black=4      OK:         	White=13    	Black=11     Best:        	White=6     	Black=2      Strong:       	---       	Black=2} 1/2-1/2